fUSD/lending_fUSD_20241221
["ID","MTS","AMOUNT","RATE_DAILY","PERIOD"]
[346241244,1734801046635,-500.0,0.00020978,2]
[346241245,1734801046646,-500.0,0.00020978,2]
[346241246,1734801046656,-500.0,0.00020978,2]
[346241247,1734801046666,-500.0,0.00020978,2]
[346241248,1734801046676,-500.0,0.00020978,2]
[346241249,1734801046686,-500.0,0.00020978,2]
[346241250,1734801046697,-3250.14,0.00020978,2]
[346241251,1734801046708,-500.0,0.00020978,2]
[346241252,1734801046718,-500.0,0.00020978,2]
[346241253,1734801046728,-500.0,0.00020978,2]
[346241254,1734801046739,-3899.7,0.00020978,2]
[346241255,1734801046749,-500.0,0.00020978,2]
[346241256,1734801046759,-614.3,0.00020978,2]
[346241257,1734801046770,-867.17,0.00020978,2]
[346241258,1734801046781,-351.57028328,0.00020978,2]
[346241259,1734801046792,-500.0,0.00020978,2]
[346241260,1734801046802,-500.0,0.00020978,2]
[346241261,1734801046813,-500.0,0.00020978,2]
[346241262,1734801046823,-500.0,0.00020978,2]
[346241263,1734801046834,-500.0,0.00020978,2]
[346241264,1734801046846,-500.0,0.00020978,2]
[346241265,1734801046857,-2498.04,0.00020978,2]
[346241266,1734801046867,-500.0,0.00020978,2]
[346241267,1734801046878,-500.0,0.00020978,2]
[346241268,1734801046888,-388.38,0.00020978,2]
[346241269,1734801046898,-1056.17,0.00020978,2]
[346241270,1734801046908,-500.0,0.00020978,2]
[346241271,1734801046918,-500.0,0.00020978,2]
[346241272,1734801046928,-876.24,0.00020978,2]
[346241273,1734801046938,-399.93,0.00020978,2]
[346241274,1734801046948,-500.0,0.00020978,2]
[346241275,1734801046960,-635.83,0.00020978,2]
[346241276,1734801046970,-510.51,0.00020978,2]
[346241277,1734801046980,-860.79,0.00020978,2]
[346241278,1734801046989,-602.59,0.00020978,2]
[346241279,1734801046999,-500.0,0.00020978,2]
[346241280,1734801047009,-500.0,0.00020978,2]
[346241281,1734801047019,-500.0,0.00020978,2]
[346241282,1734801047028,-693.47,0.00020978,2]
[346241283,1734801047037,-558.85719505,0.00020978,2]
[346241284,1734801047047,-500.0,0.00020978,2]
[346241285,1734801047057,-580.05,0.00020978,2]
[346241286,1734801047066,-500.0,0.00020978,2]
[346241287,1734801047075,-500.0,0.00020978,2]
[346241288,1734801047334,-500.0,0.00020978,2]
[346241289,1734801047353,-501.91879041,0.00020978,2]
[346241290,1734801047369,-150.0,0.00020979,2]
[346241291,1734801047380,-467.62917475,0.00020979,2]
[346241292,1734801047390,-500.0,0.00020979,2]
[346241293,1734801047399,-500.0,0.00020979,2]
[346241294,1734801047409,-505.28180807,0.00020979,2]
[346241295,1734801047421,-502.01478555,0.00020979,2]
[346241296,1734801047431,-324.87180575,0.00020979,2]
[346241297,1734801047440,-502.04128275,0.00020979,2]
[346241298,1734801047450,-502.53443461,0.00020979,2]
[346241299,1734801047459,-391.49208298,0.00020979,2]
[346241300,1734801047469,-500.0,0.00020979,2]
[346241301,1734801047478,-500.0,0.00020979,2]
[346241302,1734801047488,-500.0,0.00020979,2]
[346241303,1734801047497,-500.0,0.00020979,2]
[346241304,1734801047506,-503.65202461,0.00020979,2]
[346241305,1734801047516,-501.78909867,0.00020979,2]
[346241306,1734801047525,-501.0568695,0.00020979,2]
[346241307,1734801047534,-500.0,0.00020979,2]
[346241308,1734801047543,-500.0,0.00020979,2]
[346241309,1734801047552,-500.0,0.00020979,2]
[346241310,1734801047562,-500.0,0.00020979,2]
[346241311,1734801047571,-500.0,0.00020979,2]
[346241312,1734801047580,-500.0,0.00020979,2]
[346241313,1734801047590,-382.37,0.00020979,2]
[346241314,1734801047599,-500.0,0.00020979,2]
[346241315,1734801047608,-500.0,0.00020979,2]
[346241316,1734801047618,-500.0,0.00020979,2]
[346241317,1734801047627,-500.0,0.00020979,2]
[346241318,1734801047637,-500.0,0.00020979,2]
[346241319,1734801047646,-500.0,0.00020979,2]
[346241320,1734801047656,-500.0,0.00020979,2]
[346241321,1734801047665,-500.0,0.00020979,2]
[346241322,1734801047674,-500.0,0.00020979,2]
[346241323,1734801047683,-500.0,0.00020979,2]
[346241324,1734801047693,-500.0,0.00020979,2]
[346241325,1734801047703,-500.0,0.00020979,2]
[346241326,1734801047713,-500.0,0.00020979,2]
[346241327,1734801047725,-500.0,0.00020979,2]
[346241328,1734801047735,-500.0,0.00020979,2]
[346241329,1734801047744,-500.0,0.00020979,2]
[346241330,1734801047754,-500.0,0.00020979,2]
[346241331,1734801047763,-500.0,0.00020979,2]
[346241332,1734801047772,-500.0,0.00020979,2]
[346241333,1734801047781,-500.0,0.00020979,2]
[346241334,1734801047791,-500.0,0.00020979,2]
[346241335,1734801047799,-500.0,0.00020979,2]
[346241336,1734801047809,-500.0,0.00020979,2]
[346241337,1734801047818,-500.0,0.00020979,2]
[346241338,1734801047827,-500.0,0.00020979,2]
[346241339,1734801047836,-500.0,0.00020979,2]
[346241340,1734801047846,-500.0,0.00020979,2]
[346241341,1734801047855,-500.0,0.00020979,2]
[346241342,1734801047864,-500.0,0.00020979,2]
[346241343,1734801047873,-500.0,0.00020979,2]
[346241344,1734801047882,-632.06845535,0.00020979,2]
[346241345,1734801047892,-159.79,0.00020979,2]
[346241346,1734801047902,-500.0,0.00020979,2]
[346241347,1734801047911,-500.0,0.00020979,2]
[346241348,1734801047920,-1000.0,0.00020979,3]
[346241349,1734801047930,-500.0,0.00020979,2]
[346241350,1734801047939,-500.0,0.00020979,2]
[346241351,1734801047948,-500.0,0.00020979,2]
[346241352,1734801047957,-185.12267502,0.00020979,2]
[346241353,1734801047967,-500.0,0.00020979,2]
[346241354,1734801047976,-500.0,0.00020979,2]
[346241355,1734801047985,-500.0,0.00020979,2]
[346241356,1734801047994,-500.0,0.00020979,2]
[346241357,1734801048003,-500.0,0.00020979,2]
[346241358,1734801048012,-500.0,0.00020979,2]
[346241359,1734801048021,-510.13,0.00020979,2]
[346241360,1734801048030,-680.16274,0.00020979,2]
[346241361,1734801048039,-889.87,0.00020979,2]
[346241362,1734801048049,-504.79,0.00020979,2]
[346241363,1734801048059,-500.0,0.00020979,2]
[346241364,1734801048068,-1034.9,0.00020979,2]
[346241365,1734801048077,-500.0,0.00020979,2]
[346241366,1734801048087,-798.08,0.00020979,2]
[346241367,1734801048096,-500.0,0.00020979,2]
[346241368,1734801048106,-500.0,0.00020979,2]
[346241369,1734801048115,-500.0,0.00020979,2]
[346241370,1734801048124,-1462.3,0.00020979,2]
[346241371,1734801048134,-641.69,0.00020979,2]
[346241372,1734801048143,-500.0,0.00020979,2]
[346241373,1734801048152,-500.0,0.00020979,2]
[346241374,1734801048162,-500.0,0.00020979,2]
[346241375,1734801048171,-500.0,0.00020979,2]
[346241376,1734801048180,-500.0,0.00020979,2]
[346241377,1734801048190,-500.0,0.00020979,2]
[346241378,1734801048199,-466.42601424,0.00020979,2]
[346241379,1734801048209,-500.0,0.00020979,2]
[346241380,1734801048219,-609.22,0.00020979,2]
[346241381,1734801048230,-500.0,0.00020979,2]
[346241382,1734801048240,-500.0,0.00020979,2]
[346241383,1734801048249,-500.0,0.00020979,2]
[346241384,1734801048259,-500.0,0.00020979,2]
[346241385,1734801048268,-1345.98,0.00020979,2]
[346241386,1734801048278,-500.0,0.00020979,2]
[346241387,1734801048287,-500.0,0.00020979,2]
[346241388,1734801048298,-500.0,0.00020979,2]
[346241389,1734801048307,-500.0,0.00020979,2]
[346241390,1734801048316,-500.0,0.00020979,2]
[346241391,1734801048326,-500.0,0.00020979,2]
[346241392,1734801048336,-501.91,0.00020979,2]
[346241393,1734801048345,-500.0,0.00020979,2]
[346241394,1734801048355,-689.16,0.00020979,2]
[346241395,1734801048364,-500.0,0.00020979,2]
[346241396,1734801048375,-500.0,0.00020979,2]
[346241397,1734801048384,-1000.0,0.00020979,2]
[346241398,1734801048394,-500.0,0.00020979,2]
[346241399,1734801048404,-500.0,0.00020979,2]
[346241400,1734801048413,-500.0,0.00020979,2]
[346241401,1734801048423,-1190.0,0.00020979,2]
[346241402,1734801048432,-6557.76034163,0.0002098,3]
[346241403,1734801048446,-57391.1998,0.0002098,3]
[346241404,1734801048459,-18767.11344377,0.0002098,3]
[346241405,1734801048470,-1000.0,0.0002098,3]
[346241406,1734801048482,-7952.07334636,0.0002098,3]
[346241408,1734801122526,173.74,0.0002,2]
[346241409,1734801123843,608.452,0.0001993,2]
[346241410,1734801203445,80304.3932708,0.0002,120]
[346241411,1734801203478,600000.0,0.0002,120]
[346241412,1734801203510,17282025.2557301,0.0002,120]
[346241413,1734801203539,5600000.0,0.0002,120]
[346241414,1734801203567,2000.0,0.0002,120]
[346241415,1734801203592,433083.28653007,0.0002,120]
[346241416,1734801213433,680304.3932708,0.0002,120]
[346241417,1734801403652,216.36,0.00010137,2]
[346241423,1734802150196,-216.36,0.00016813,2]
[346241424,1734802150219,-4129.44070747,0.00017,2]
[346241425,1734802150241,-334.45386245,0.00017041,2]
[346241427,1734802180598,205.25,0.00018988,30]
[346241439,1734802232266,-500.0,0.00016831,2]
[346241440,1734802232278,-160.84613755,0.00017041,2]
[346241441,1734802232288,-150.0,0.00018,2]
[346241442,1734802232299,-150.0,0.00018,2]
[346241443,1734802232309,-150.0,0.00018,2]
[346241444,1734802232319,-150.0,0.000182,2]
[346241445,1734802232329,-150.0,0.000184,2]
[346241446,1734802232339,-150.0,0.000186,2]
[346241447,1734802232352,-164.36,0.00018704,2]
[346241448,1734802232363,-6874.32,0.00018743,2]
[346241449,1734802232372,-1924.63,0.0001879,2]
[346241450,1734802232382,-150.0,0.000188,2]
[346241451,1734802232391,-1000.0,0.00018931,2]
[346241452,1734802232401,-150.0,0.00019,2]
[346241453,1734802232410,-150.0,0.00019,2]
[346241454,1734802232419,-150.0,0.00019,2]
[346241455,1734802232429,-300.0,0.00019014,2]
[346241456,1734802232438,-150.0,0.000192,4]
[346241457,1734802232447,-495.3,0.00019305,2]
[346241458,1734802232457,-150.0,0.000194,4]
[346241459,1734802232466,-2185.201,0.000196,2]
[346241460,1734802232475,-179.299,0.000196,2]
[346241461,1734802232485,-150.0,0.000196,4]
[346241462,1734802232494,-500.0,0.00019671,2]
[346241463,1734802232504,-386.21,0.0001968,2]
[346241464,1734802232513,-183.69,0.00019789,2]
[346241465,1734802232522,-150.0,0.000198,4]
[346241466,1734802232531,-1584.1316992,0.00019899,2]
[346241467,1734802232548,-3299.18338414,0.00019899,2]
[346241468,1734802232557,-2304.12635778,0.00019899,2]
[346241469,1734802232997,-2579.18872552,0.00019899,2]
[346241470,1734802233008,-4883.3150833,0.00019899,2]
[346241471,1734802233017,-4883.3150833,0.00019899,2]
[346241472,1734802233026,-4883.3150833,0.00019899,2]
[346241473,1734802233036,-4883.3150833,0.000199,2]
[346241474,1734802233045,-4883.3150833,0.000199,2]
[346241475,1734802233054,-1112.8785,0.000199,2]
[346241476,1734802233063,-5000.0,0.000199,2]
[346241477,1734802233072,-4883.3150833,0.000199,2]
[346241478,1734802233081,-4883.3150833,0.000199,2]
[346241479,1734802233091,-4883.3150833,0.000199,2]
[346241480,1734802233103,-523.48420641,0.000199,2]
[346241481,1734802233112,-663.00506878,0.000199,2]
[346241482,1734802233123,-595.31620618,0.000199,2]
[346241483,1734802233132,-6781.69048464,0.000199,2]
[346241484,1734802233141,-783.38351746,0.000199,2]
[346241485,1734802233150,-13418.06747519,0.000199,2]
[346241486,1734802233159,-250.0,0.00019909,2]
[346241487,1734802233168,-161.07221604,0.00019913,2]
[346241488,1734802233177,-1843.9395948,0.00019913,2]
[346241489,1734802233187,-582.81,0.0001993,2]
[346241490,1734802233196,-164.36,0.0001995,2]
[346241491,1734802233205,-20093.56554415,0.0001998,2]
[346241492,1734802233214,-153.19,0.0001999,2]
[346241493,1734802233223,-153.19,0.0001999,2]
[346241494,1734802233233,-153.19,0.0001999,2]
[346241495,1734802233242,-153.19,0.0001999,2]
[346241496,1734802233251,-153.19,0.0001999,2]
[346241497,1734802233260,-153.19,0.0001999,2]
[346241498,1734802233269,-153.19,0.0001999,2]
[346241499,1734802233278,-153.19,0.0001999,2]
[346241500,1734802233287,-153.19,0.0001999,2]
[346241501,1734802233296,-153.19,0.0001999,2]
[346241502,1734802233305,-153.19,0.0001999,2]
[346241503,1734802233315,-236.29932824,0.0001999,2]
[346241504,1734802233324,-150.0,0.00019992,2]
[346241505,1734802233333,-998.4,0.00019998,2]
[346241506,1734802233342,-1437.52,0.00019998,2]
[346241507,1734802233354,-500.0,0.00019998,2]
[346241508,1734802233364,-1618.72,0.00019998,2]
[346241509,1734802233373,-1887.8,0.00019998,2]
[346241510,1734802233384,-1688.77,0.00019998,2]
[346241511,1734802233394,-1242.87,0.00019998,2]
[346241512,1734802233404,-1646.63,0.00019998,2]
[346241513,1734802233414,-500.0,0.00019998,2]
[346241514,1734802233424,-500.0,0.00019998,2]
[346241515,1734802233434,-5242.5,0.00019998,2]
[346241516,1734802233444,-500.0,0.00019998,2]
[346241517,1734802233454,-566.84,0.00019998,2]
[346241518,1734802233465,-500.0,0.00019998,2]
[346241519,1734802233475,-500.0,0.00019998,2]
[346241520,1734802233485,-500.0,0.00019998,2]
[346241521,1734802233495,-500.0,0.00019998,2]
[346241522,1734802233506,-501.55087084,0.00019998,2]
[346241523,1734802233515,-1000.0,0.00019999,2]
[346241524,1734802233525,-500.0,0.00019999,2]
[346241525,1734802233535,-500.0,0.00019999,2]
[346241526,1734802233545,-500.0,0.00019999,2]
[346241527,1734802233555,-473.73134777,0.00019999,2]
[346241528,1734802233564,-287.27066807,0.00019999,2]
[346241529,1734802233575,-500.0,0.00019999,2]
[346241530,1734802233584,-1914.32580326,0.00019999,2]
[346241535,1734802238179,-4481.92734836,0.000199,2]
[346241536,1734802238189,-500.0,0.00019998,2]
[346241537,1734802238198,-500.0,0.00019998,2]
[346241538,1734802238208,-9453.92464959,0.00019999,2]
[346241552,1734802240311,-500.0,0.00019998,2]
[346241553,1734802240321,-341.464997,0.00019998,2]
[346241554,1734802240490,-158.535003,0.00019998,2]
[346241555,1734802240500,-243.52,0.00019998,2]
[346241556,1734802240509,-573.0183991,0.00019999,2]
[346241557,1734802240520,-3033.49090866,0.00019999,2]
[346241563,1734802243783,-500.0,0.00019998,2]
[346241564,1734802243793,-475.24,0.00019998,2]
[346241565,1734802243842,-24.76,0.00019998,2]
[346241566,1734802243852,-500.0,0.00019998,2]
[346241567,1734802243863,-277.44385,0.00019998,2]
[346241571,1734802246204,-222.55615,0.00019998,2]
[346241572,1734802246213,-500.0,0.00019998,2]
[346241573,1734802246223,-500.0,0.00019998,2]
[346241574,1734802246232,-500.0,0.00019998,2]
[346241575,1734802246241,-500.0,0.00019998,2]
[346241576,1734802246252,-8643.04836072,0.00019999,2]
[346241577,1734802246261,-500.0,0.00019999,2]
[346241578,1734802246270,-500.0,0.00019999,2]
[346241579,1734802246279,-500.0,0.00019999,2]
[346241580,1734802246288,-500.0,0.00019999,2]
[346241581,1734802246296,-500.0,0.00019999,2]
[346241582,1734802246305,-500.0,0.00019999,2]
[346241583,1734802246314,-500.0,0.00019999,2]
[346241584,1734802246323,-500.0,0.00019999,2]
[346241585,1734802246332,-500.0,0.00019999,2]
[346241586,1734802246341,-500.0,0.00019999,2]
[346241587,1734802246350,-500.0,0.00019999,2]
[346241588,1734802246360,-500.0,0.00019999,2]
[346241589,1734802246370,-500.0,0.00019999,2]
[346241590,1734802246379,-500.0,0.00019999,2]
[346241591,1734802246388,-500.0,0.00019999,2]
[346241592,1734802246397,-500.0,0.00019999,2]
[346241593,1734802246407,-500.0,0.00019999,2]
[346241594,1734802246416,-500.0,0.00019999,2]
[346241595,1734802246425,-500.0,0.00019999,2]
[346241596,1734802246435,-500.0,0.00019999,2]
[346241597,1734802246444,-508.01554713,0.00019999,2]
[346241598,1734802246453,-500.0,0.00019999,2]
[346241599,1734802246463,-595.81361843,0.00019999,2]
[346241600,1734802246472,-500.0,0.00019999,2]
[346241601,1734802246483,-500.0,0.00019999,2]
[346241602,1734802246492,-647.69382681,0.00019999,2]
[346241603,1734802246503,-500.0,0.00019999,2]
[346241604,1734802246513,-500.0,0.00019999,2]
[346241605,1734802246523,-500.0,0.00019999,2]
[346241606,1734802246533,-500.0,0.00019999,2]
[346241607,1734802246544,-500.0,0.00019999,2]
[346241609,1734802246552,-500.0,0.00019999,2]
[346241610,1734802246561,-500.0,0.00019999,2]
[346241611,1734802246570,-500.0,0.00019999,2]
[346241612,1734802246579,-500.0,0.00019999,2]
[346241613,1734802246588,-500.0,0.00019999,2]
[346241614,1734802246598,-500.0,0.00019999,2]
[346241615,1734802246606,-382.87249691,0.00019999,2]
[346241616,1734802246969,-117.12750309,0.00019999,2]
[346241617,1734802246979,-500.0,0.00019999,2]
[346241618,1734802246988,-500.0,0.00019999,2]
[346241619,1734802246997,-500.0,0.00019999,2]
[346241620,1734802247006,-500.0,0.00019999,2]
[346241621,1734802247015,-96.28407212,0.00019999,2]
[346241623,1734802341749,174.26,0.00010137,2]
[346241625,1734803206838,166.92,0.00010137,2]
[346241628,1734803348155,-490.0,0.00016954,2]
[346241629,1734803348184,-10.11,0.00016954,2]
[346241638,1734803402700,150.8451426,0.00016954,2]
[346241644,1734803432504,-181.16092209,0.000179,2]
[346241645,1734803432516,-300.0,0.00017999,2]
[346241646,1734803432528,-150.0,0.00018,2]
[346241647,1734803432540,-150.0,0.00018,2]
[346241648,1734803432553,-150.0,0.00018,2]
[346241649,1734803432564,-150.00000001,0.00018,2]
[346241650,1734803432576,-150.0,0.00018,2]
[346241651,1734803432586,-150.0,0.00018,2]
[346241652,1734803432596,-150.0,0.00018,2]
[346241653,1734803432608,-150.0,0.00018,2]
[346241654,1734803432621,-150.0,0.00018,2]
[346241655,1734803432634,-250.0,0.0001861,2]
[346241656,1734803432646,-778.21,0.00018772,2]
[346241657,1734803432659,-250.0,0.00018774,2]
[346241658,1734803432671,-364.37,0.00018776,2]
[346241659,1734803432683,-168.03,0.00018785,2]
[346241660,1734803432696,-14787.48586127,0.00018801,2]
[346241661,1734803432712,-19.85413873,0.00018801,2]
[346241662,1734803432725,-168.54,0.00018801,2]
[346241663,1734803432736,-645.71120952,0.00018819,2]
[346241664,1734803432752,-354.28879048,0.00018819,2]
[346241665,1734803432764,-181.16092209,0.00018849,2]
[346241666,1734803432776,-20.8169922,0.000189,6]
[346241667,1734803432796,-179.1830078,0.000189,6]
[346241668,1734803432809,-1170.66178625,0.00018928,2]
[346241669,1734803432829,-681.75821375,0.00018928,2]
[346241670,1734803432841,-6000.0,0.00019,2]
[346241671,1734803432854,-150.0,0.00019,2]
[346241672,1734803432866,-150.0,0.00019,2]
[346241673,1734803432877,-500.0,0.00019,6]
[346241674,1734803432888,-700.0,0.000191,6]
[346241675,1734803432899,-600.0,0.00019177,2]
[346241676,1734803432909,-1000.0,0.000192,7]
[346241677,1734803432921,-500.11,0.00019218,2]
[346241678,1734803432933,-250.0,0.00019245,2]
[346241679,1734803432947,-1377.29719238,0.00019283,2]
[346241680,1734803432963,-225.48580588,0.00019283,2]
[346241682,1734803432977,-1200.0,0.000193,7]
[346241684,1734803432988,-160.07,0.00019318,2]
[346241686,1734803432999,-512.1,0.00019327,2]
[346241687,1734803433012,-200.0,0.000194,7]
[346241688,1734803433024,-15268.0,0.00019403,2]
[346241689,1734803433037,-200.0,0.000195,7]
[346241690,1734803433050,-200.0,0.000196,7]
[346241691,1734803433061,-420.0,0.00019639,2]
[346241692,1734803433071,-531.60195461,0.00019651,2]
[346241693,1734803433082,-200.0,0.000197,7]
[346241694,1734803433093,-531.60195459,0.00019776,2]
[346241695,1734803433106,-181.16092209,0.00019798,2]
[346241696,1734803433117,-1560.15554,0.000198,2]
[346241697,1734803433128,-674.0,0.000198,7]
[346241698,1734803433140,-217.68148574,0.0001988,2]
[346241699,1734803433151,-486.1251233,0.0001988,2]
[346241700,1734803433162,-152.42721374,0.00019882,2]
[346241701,1734803433257,-333.69790948,0.00019882,2]
[346241702,1734803433268,-23.65747552,0.00019884,2]
[346241707,1734803438359,-462.4676477,0.00019884,2]
[346241708,1734803438369,-0.9526379,0.00019887,2]
[346241709,1734803438415,-485.17248532,0.00019887,2]
[346241710,1734803438423,-150.43486715,0.00019889,2]
[346241711,1734803438475,-335.69025607,0.00019889,2]
[346241712,1734803438484,-173.59306876,0.00019897,2]
[346241713,1734803438493,-45.94621423,0.00019897,2]
[346241714,1734803438588,-387.05196557,0.00019897,2]
[346241721,1734803440503,-500.0,0.00019897,2]
[346241722,1734803440514,-123.5755202,0.00019897,2]
[346241723,1734803440522,-161.07221604,0.00019898,2]
[346241724,1734803440531,-1403.06520915,0.00019898,2]
[346241725,1734803440540,-217.68148574,0.00019898,2]
[346241726,1734803440549,-173.59306876,0.00019899,2]
[346241727,1734803440558,-1214.3894,0.00019899,2]
[346241728,1734803440568,-88652.3837,0.00019899,2]
[346241729,1734803440577,-199.6247,0.000199,2]
[346241730,1734803440586,-988.4172,0.000199,2]
[346241731,1734803440595,-602.6286,0.000199,2]
[346241732,1734803440605,-3802.6691,0.000199,2]
[346241733,1734803440614,-377.54773356,0.000199,2]
[346241734,1734803440623,-5800.0,0.000199,2]
[346241735,1734803440632,-173.59306876,0.000199,2]
[346241736,1734803440642,-531.60195459,0.000199,2]
[346241737,1734803440651,-336.6181253,0.000199,2]
[346241738,1734803440660,-332.47852046,0.000199,2]
[346241739,1734803440669,-575.368,0.0001993,2]
[346241740,1734803440680,-879.9153,0.0001993,2]
[346241741,1734803440689,-427.05634315,0.00019957,2]
[346241742,1734803440699,-154.49,0.0001997,2]
[346241743,1734803440709,-229.98941723,0.0001997,2]
[346241744,1734803440719,-538.85,0.0001997,2]
[346241745,1734803440729,-538.85,0.0001997,2]
[346241746,1734803440738,-538.85,0.0001997,2]
[346241747,1734803440747,-538.85,0.0001997,2]
[346241748,1734803440756,-538.85,0.0001997,2]
[346241749,1734803440765,-14037.78939058,0.00019979,2]
[346241750,1734803440774,-500.0,0.00019979,2]
[346241751,1734803440783,-229.98941723,0.0001999,2]
[346241752,1734803440793,-229.98941723,0.0001999,2]
[346241753,1734803440803,-500.0,0.00019995,2]
[346241754,1734803440813,-500.0,0.00019995,2]
[346241755,1734803440822,-54747.42717101,0.00019996,3]
[346241756,1734803440834,-1606.229472,0.00019996,3]
[346241757,1734803440845,-10210.2000005,0.00019996,3]
[346241758,1734803440858,-1800.81847841,0.00019996,3]
[346241759,1734803440882,-744674.14866194,0.00019996,3]
[346241760,1734803440891,-20349.98062449,0.00019996,3]
[346241761,1734803440901,-500.0,0.00019996,2]
[346241762,1734803440910,-500.0,0.00019996,2]
[346241763,1734803440919,-500.0,0.00019996,2]
[346241764,1734803440928,-500.0,0.00019996,2]
[346241765,1734803440938,-500.0,0.00019996,2]
[346241766,1734803440947,-506.89083906,0.00019996,2]
[346241767,1734803440957,-562.78087839,0.00019996,2]
[346241768,1734803440968,-500.0,0.00019996,2]
[346241769,1734803440982,-500.0,0.00019996,2]
[346241771,1734803440991,-500.0,0.00019996,2]
[346241773,1734803441000,-500.0,0.00019996,2]
[346241775,1734803441010,-602.75,0.00019996,2]
[346241777,1734803441022,-500.0,0.00019996,2]
[346241779,1734803441031,-500.0,0.00019996,2]
[346241781,1734803441041,-500.0,0.00019996,2]
[346241783,1734803441051,-500.0,0.00019996,2]
[346241785,1734803441060,-501.80017264,0.00019996,2]
[346241787,1734803441069,-500.0,0.00019996,2]
[346241789,1734803441079,-500.0,0.00019996,2]
[346241791,1734803441089,-500.0,0.00019996,2]
[346241793,1734803441098,-500.0,0.00019996,2]
[346241795,1734803441108,-500.0,0.00019996,2]
[346241797,1734803441118,-500.0,0.00019996,2]
[346241799,1734803441127,-500.0,0.00019996,2]
[346241801,1734803441136,-500.0,0.00019996,2]
[346241803,1734803441146,-500.0,0.00019996,2]
[346241805,1734803441155,-500.0,0.00019996,2]
[346241807,1734803441165,-500.0,0.00019996,2]
[346241809,1734803441174,-500.0,0.00019996,2]
[346241811,1734803441183,-500.0,0.00019996,2]
[346241813,1734803441193,-500.0,0.00019996,2]
[346241815,1734803441202,-500.0,0.00019996,2]
[346241817,1734803441211,-500.0,0.00019996,2]
[346241819,1734803441221,-500.0,0.00019996,2]
[346241821,1734803441230,-500.0,0.00019996,2]
[346241823,1734803441239,-500.0,0.00019996,2]
[346241825,1734803441248,-500.0,0.00019996,2]
[346241827,1734803441256,-500.0,0.00019996,2]
[346241829,1734803441266,-500.0,0.00019996,2]
[346241831,1734803441274,-500.0,0.00019996,2]
[346241833,1734803441283,-702.8,0.00019996,2]
[346241835,1734803441292,-502.95,0.00019996,2]
[346241837,1734803441302,-500.0,0.00019996,2]
[346241839,1734803441311,-500.0,0.00019996,2]
[346241841,1734803441320,-500.0,0.00019996,2]
[346241843,1734803441329,-500.0,0.00019996,2]
[346241845,1734803441339,-519.61916475,0.00019996,2]
[346241847,1734803441348,-500.0,0.00019996,2]
[346241849,1734803441357,-500.0,0.00019996,2]
[346241850,1734803441366,-500.0,0.00019996,2]
[346241851,1734803441375,-500.0,0.00019996,2]
[346241853,1734803441385,-500.0,0.00019996,2]
[346241854,1734803441395,-500.0,0.00019996,2]
[346241856,1734803441404,-500.0,0.00019996,2]
[346241858,1734803441413,-584.04434159,0.00019996,2]
[346241860,1734803441423,-500.0,0.00019996,2]
[346241862,1734803441432,-1009.52,0.00019996,2]